bitfinex-derivatives/quotes_ETHF0:USTF0_20250331
["timestamp","ask_amount","ask_price","bid_price","bid_amount"]
[1743414435651,1.12046,1785.3,1785.2,4.32827]
[1743414435945,1.12045,1785.4,1785.3,1.12044]
[1743414436335,1.12045,1785.4,1785.3,2.55404]
[1743414436539,1.81738,1785.5,1785.4,1.12039]
[1743414436742,1.81738,1785.5,1785.4,3.2078]
[1743414437049,1.12039,1785.4,1785.3,2.55402]
[1743414437450,1.81739,1785.5,1785.4,1.12039]
[1743414437650,1.81739,1785.5,1785.4,4.32819]
[1743414437947,1.81739,1785.5,1785.4,1.12039]
[1743414438150,1.12039,1785.4,1785.3,2.55402]
[1743414438353,1.81737,1785.5,1785.4,1.12039]
[1743414438544,0.00839607,1785.6,1785.5,1.12033]
[1743414438751,1.12866607,1785.6,1785.5,1.12033]
[1743414439053,0.00839607,1785.6,1785.5,2.53663]
[1743414442347,1.12866607,1785.6,1785.4,4.6215]
[1743414442548,1.12866607,1785.6,1785.5,1.12033]
[1743414442747,1.12866607,1785.6,1785.5,2.55563]
[1743414442947,0.00839607,1785.6,1785.5,2.55563]
[1743414443355,1.12866607,1785.6,1785.5,2.55563]
[1743414443550,2.51006607,1785.6,1785.5,2.55563]
[1743414444252,1.38979607,1785.6,1785.5,2.55563]
[1743414444555,2.51006607,1785.6,1785.5,2.55563]
[1743414445660,1.38979607,1785.6,1785.5,2.55563]
[1743414445961,2.51006607,1785.6,1785.5,2.55563]
[1743414446258,1.38979607,1785.6,1785.5,2.55563]
[1743414447152,1.4171,1786.0,1785.9,1.12008]
[1743414447352,2.53712,1786.0,1785.9,1.12008]
[1743414447855,1.4171,1786.0,1785.9,1.12008]
[1743414448356,1.4171,1786.0,1785.9,5.77918]
[1743414448662,2.63384607,1786.1,1786.0,1.12002]
[1743414448850,2.63384607,1786.1,1786.0,2.57132]
[1743414449048,1.51389607,1786.1,1786.0,2.57132]
[1743414449757,2.63384607,1786.1,1786.0,2.57132]
[1743414450054,2.63384607,1786.1,1786.0,1.12002]
[1743414450554,1.12008,1785.9,1785.8,1.12850607]
[1743414451060,2.61707,1786.0,1785.9,1.12008]
[1743414451857,1.12008,1785.9,1785.8,1.12850607]
[1743414452053,1.12008,1785.9,1785.8,0.00839607]
[1743414452054,3.33368,1785.9,1785.8,0.00839607]
[1743414452356,4.07628,1785.9,1785.8,0.00839607]
[1743414456354,1.12039,1785.4,1785.3,3.2078]
[1743414457060,1.1205,1785.3,1785.2,1.1205]
[1743414457261,1.12052,1785.2,1785.1,6.39952]
[1743414458259,1.12052,1785.2,1785.1,3.2078]
[1743414458462,1.12071,1785.0,1784.9,4.32849]
[1743414458760,1.12071,1785.0,1784.9,3.2078]
[1743414458954,1.12071,1784.9,1784.8,0.001]
[1743414459155,2.49311,1784.9,1784.8,0.001]
[1743414459361,1.12096,1784.5,1784.4,1.4143]
[1743414459855,6.82919,1784.7,1784.3,1.12107]
[1743414459856,2.2068,1784.6,1784.3,1.12107]
[1743414460065,1.12108,1784.3,1784.2,3.2078]
[1743414460363,1.12108,1784.3,1784.1,2.53547]
[1743414460567,1.4543,1784.4,1784.1,2.53547]
[1743414460568,1.4543,1784.2,1784.1,2.53547]
[1743414460761,1.12102,1784.4,1784.3,1.12103]
[1743414460962,2.57538,1784.3,1784.2,4.6221]
[1743414461165,1.4543,1784.3,1784.0,3.2078]
[1743414461356,4.028,1784.4,1783.9,1.4208]
[1743414461357,1.12121,1784.1,1783.9,1.4208]
[1743414461669,2.57557,1784.0,1783.9,7.16424]
[1743414461866,1.4543,1784.0,1783.9,7.16424]
[1743414462367,0.00839607,1784.2,1784.1,1.12121]
[1743414462671,0.00839607,1784.2,1784.1,4.32901]
[1743414462970,1.12954607,1784.2,1784.1,4.32901]
[1743414463268,2.56194607,1784.2,1784.1,4.32901]
[1743414463663,1.44079607,1784.2,1784.1,4.32901]
[1743414463865,0.00839607,1784.2,1784.1,4.32901]
[1743414465965,1.44759607,1784.2,1784.1,4.32901]
[1743414466269,0.00839607,1784.2,1784.1,4.32901]
[1743414469272,6.07e-06,1784.2,1784.1,6.82901]
[1743414469472,1.5073,1784.7,1784.6,1.1209]
[1743414469774,1.5073,1784.7,1784.6,4.3287]
[1743414470166,0.7451,1785.0,1784.9,1.12071]
[1743414471070,2.2524,1785.0,1784.9,1.12071]
[1743414471468,1.5073,1785.0,1784.9,1.12071]
[1743414471867,1.5073,1785.0,1784.9,2.56161]
[1743414472768,1.12071,1784.9,1784.8,1.12916607]
[1743414472969,1.83341,1784.9,1784.8,1.12916607]
[1743414473465,1.83341,1784.9,1784.8,0.00839607]
[1743414475771,1.83341,1784.9,1784.8,1.12916607]
[1743414476177,1.83341,1784.9,1784.8,0.00839607]
[1743414477469,2.80224,1784.7,1784.4,1.12102]
[1743414477671,4.029,1784.7,1784.3,4.6297]
[1743414477876,1.12099,1784.5,1784.4,1.12099]
[1743414478472,1.12108,1784.3,1784.2,1.12113]
[1743414478886,2.63655,1784.4,1784.3,1.12108]
[1743414479082,1.12108,1784.3,1784.2,2.56141]
[1743414479377,2.63658,1784.3,1784.2,2.56141]
[1743414479868,1.5155,1784.3,1784.2,2.56141]
[1743414480380,1.5155,1784.3,1784.2,1.12111]
[1743414480579,2.63658,1784.3,1784.2,2.55571]
[1743414480772,1.5155,1784.3,1784.2,2.55571]
[1743414480974,0.694,1784.5,1784.4,1.12102]
[1743414481272,3.2078,1784.8,1784.1,9.50094]
[1743414481273,1.12102,1784.4,1784.3,4.6424]
[1743414481477,1.12102,1784.4,1784.3,5.76341]
[1743414482180,2.6206,1784.5,1784.4,1.12102]
[1743414482377,2.80211,1784.7,1784.4,1.4346]
[1743414482582,2.62053,1784.6,1784.5,1.12092]
[1743414482778,2.62053,1784.6,1784.5,1.4346]
[1743414482983,1.12096,1784.5,1784.4,4.6424]
[1743414483279,1.4996,1784.5,1784.4,5.76341]
[1743414483986,1.4996,1784.5,1784.4,4.32881]
[1743414484782,1.4457,1785.0,1784.8,1.12074]
[1743414484986,4.029,1784.9,1784.8,1.12077]
[1743414485184,2.56639,1785.0,1784.9,1.12071]
[1743414485380,1.12083,1784.7,1784.6,4.32865]
[1743414485581,1.12076,1784.9,1784.8,1.12073]
[1743414485880,59.6738,1785.3,1784.8,1.12073]
[1743414485881,3.2078,1785.9,1784.8,3.2078]
[1743414486082,3.2078,1785.9,1785.4,2.80099]
[1743414486083,5.5049,1785.8,1785.4,2.80099]
[1743414486391,1.12029,1785.6,1785.5,1.12027]
[1743414486985,1.12029,1785.6,1785.5,1.12031]
[1743414486986,1.12033,1785.6,1785.5,1.12031]
[1743414487687,1.43679607,1785.7,1785.6,1.12027]
[1743414487883,2.55700607,1785.7,1785.6,1.12027]
[1743414488586,1.43679607,1785.7,1785.6,1.12027]
[1743414488787,2.55700607,1785.7,1785.6,1.12027]
[1743414489186,1.43679607,1785.7,1785.6,4.32807]
[1743414490292,2.55700607,1785.7,1785.6,4.32807]
[1743414490483,2.55700607,1785.7,1785.6,3.2078]
[1743414490887,1.12027,1785.6,1785.5,1.1203]
[1743414491188,1.5063,1785.6,1785.5,1.1203]
[1743414491486,2.62657,1785.6,1785.5,1.1203]
[1743414491688,1.12046,1785.3,1785.2,3.2078]
[1743414491881,5.15842,1785.4,1785.3,1.12042]
[1743414492078,1.12046,1785.3,1785.2,3.2078]
[1743414492278,2.62676,1785.3,1785.2,3.2078]
[1743414492483,3.37806,1785.3,1785.2,3.2078]
[1743414492888,2.2576,1785.3,1785.2,4.32832]
[1743414493192,3.37806,1785.3,1785.2,4.32832]
[1743414494084,2.2576,1785.3,1785.2,4.32832]
[1743414494291,3.37806,1785.3,1785.2,4.32832]
[1743414495492,3.37806,1785.3,1785.2,3.2078]
[1743414495689,3.37806,1785.3,1785.2,4.32832]
[1743414495889,3.37806,1785.3,1785.2,3.2078]
[1743414497090,1.12066,1785.0,1784.8,3.2078]
[1743414497290,1.12029,1785.6,1785.2,2.80127]
[1743414497589,1.12039,1785.4,1785.2,0.729]
[1743414497792,1.12046,1785.3,1785.2,2.5916]
[1743414498183,1.12043,1785.4,1785.3,1.12045]
[1743414498388,5.16638,1785.5,1785.3,1.12045]
[1743414498696,1.12046,1785.3,1785.2,1.12047]
[1743414498998,1.12044,1785.4,1785.2,1.12047]
[1743414499189,4.046,1785.5,1785.4,1.12039]
[1743414499388,1.87621,1785.6,1785.5,1.12033]
[1743414499389,0.7559,1785.6,1785.5,1.12033]
[1743414499586,0.00839607,1785.7,1785.3,3.2078]
[1743414499795,1.12032,1785.6,1785.3,3.9644]
[1743414499991,1.12032,1785.6,1785.5,1.12032]
[1743414499992,1.1203,1785.6,1785.5,1.12032]
[1743414500192,1.12862607,1785.7,1785.6,1.12027]
[1743414500388,1.12862607,1785.7,1785.6,1.3936]
[1743414500810,0.00839607,1785.7,1785.3,3.9644]
[1743414500993,1.12039,1785.5,1785.4,1.3936]
[1743414501488,1.12039,1785.4,1785.3,5.08485]
[1743414501998,1.12039,1785.4,1785.3,1.87705]
[1743414502493,1.12046,1785.3,1785.2,2.51412]
[1743414502994,1.12046,1785.3,1785.2,1.3936]
[1743414503995,0.6892,1785.4,1784.9,3.2078]
[1743414504193,1.12064,1785.0,1784.9,5.76061]
[1743414504384,1.12064,1785.0,1784.9,4.6399]
[1743414504590,5.16564,1785.0,1784.9,4.6399]
[1743414504985,5.16564,1785.0,1784.9,5.76061]
[1743414505495,4.043,1785.3,1784.9,4.6399]
[1743414505697,1.12061,1785.1,1785.0,2.61331]
[1743414505892,1.12064,1785.0,1784.9,3.2078]
[1743414506197,1.12063,1785.1,1785.0,1.12063]
[1743414506595,1.12064,1785.0,1784.9,4.32846]
[1743414507299,1.12064,1785.0,1784.9,3.2078]
[1743414508098,1.82104,1785.0,1784.9,3.2078]
[1743414508896,7.53415,1785.0,1784.8,3.2078]
[1743414509101,1.1209,1784.6,1784.5,3.928]
[1743414509401,1.1209,1784.6,1784.5,1.84111]
[1743414509996,0.00839607,1784.7,1784.6,1.1209]
[1743414511298,4.033,1785.2,1785.1,1.12055]
[1743414511489,1.12064,1785.0,1784.9,3.2078]
[1743414511692,1.12074,1784.9,1784.8,4.3285]
[1743414511895,1.12083,1784.8,1784.7,1.12082]
[1743414513096,1.12916607,1784.9,1784.8,1.12077]
[1743414513297,0.00839607,1784.9,1784.8,4.32857]
[1743414514896,0.6865,1785.5,1785.4,1.12039]
[1743414515201,1.12043,1785.4,1785.3,1.1204]
[1743414515401,1.12043,1785.4,1785.3,1.8466]
[1743414516304,1.12043,1785.4,1785.3,0.7262]
[1743414516503,1.12043,1785.4,1785.2,3.2078]
[1743414516711,1.12046,1785.3,1785.2,3.2078]
[1743414516896,1.12046,1785.3,1785.2,4.32832]
[1743414517206,1.12043,1785.4,1785.3,1.1204]
[1743414517904,1.12046,1785.3,1785.2,4.32827]
[1743414518802,1.12046,1785.3,1785.2,3.2078]
[1743414519205,1.12046,1785.3,1785.2,4.32832]
[1743414519405,1.12046,1785.3,1785.2,4.32828]
[1743414519895,1.12046,1785.3,1785.2,3.2078]
[1743414520098,5.15546,1785.3,1785.2,1.13409585]
[1743414520294,1.12067,1785.0,1784.9,1.12064]
[1743414521105,1.12063,1785.1,1785.0,1.12058]
[1743414522000,0.7519,1785.2,1785.1,1.12058]
[1743414522205,1.1205,1785.3,1785.2,1.12052]
[1743414522602,1.12052,1785.2,1785.1,1.86882]
[1743414522907,1.12047,1785.4,1785.3,1.12042]
[1743414523101,1.12046,1785.4,1785.3,1.12041]
[1743414523302,8.70779607,1785.5,1785.3,1.12041]
[1743414523606,9.82812607,1785.5,1785.4,40.8]
[1743414524003,1.12046,1785.3,1785.2,2.58678]
[1743414524311,11.50872607,1785.5,1785.2,2.58678]
[1743414524605,1.12046,1785.3,1785.2,2.58678]
[1743414525010,1.12046,1785.3,1785.2,43.38678]
[1743414525301,1.12044,1785.4,1785.3,1.12042]
[1743414525504,1.12035,1785.5,1785.4,1.12033]
[1743414525908,1.12035,1785.5,1785.4,41.92033]
[1743414526405,9.62919,1785.7,1785.4,40.8]
[1743414526608,1.12035,1785.5,1785.4,40.8]
[1743414527507,1.12035,1785.5,1785.4,41.92039]
[1743414527709,1.12035,1785.5,1785.4,40.8]
[1743414528205,1.48459607,1785.6,1785.4,44.0078]
[1743414528506,1.12022,1785.7,1785.6,1.12027]
[1743414529104,1.12022,1785.7,1785.6,46.64677]
[1743414529303,1.12022,1785.7,1785.6,45.5265]
[1743414529503,1.12022,1785.7,1785.6,46.64676]
[1743414529504,1.12023,1785.7,1785.6,46.64676]
[1743414529897,1.12023,1785.7,1785.6,45.5265]
[1743414531110,1.12023,1785.7,1785.6,46.64677]
[1743414531308,1.12023,1785.7,1785.6,44.0078]
[1743414531805,1.12023,1785.7,1785.6,40.8]
[1743414532311,1.12027,1785.6,1785.5,0.00839607]
[1743414532507,0.7354,1785.6,1785.5,0.00839607]
[1743414532706,1.85567,1785.6,1785.5,0.00839607]
[1743414533103,1.85567,1785.6,1785.5,40.80839607]
[1743414533610,5.60104,1785.7,1785.4,4.32819]
[1743414533908,1.12033,1785.5,1785.4,3.2078]
[1743414534304,5.87143,1785.5,1785.4,3.2078]
[1743414534501,1.5122,1785.6,1785.4,44.0078]
[1743414534704,1.5122,1785.6,1785.4,45.12813]
[1743414534705,1.12033,1785.5,1785.4,45.12813]
[1743414535013,1.12033,1785.5,1785.4,44.0078]
[1743414535209,1.12033,1785.5,1785.4,45.12819]
[1743414535210,2.54273,1785.5,1785.4,45.12819]
[1743414535809,2.80058,1785.7,1785.5,1.12027]
[1743414535810,1.12029,1785.6,1785.5,1.12027]
[1743414536007,2.54269,1785.6,1785.5,1.12027]
[1743414536514,2.54269,1785.6,1785.5,40.8]
[1743414537006,2.97648718,1785.6,1785.5,40.8]
[1743414539712,3.70728718,1785.6,1785.5,40.8]
[1743414540315,3.70728718,1785.6,1785.5,41.92033]
[1743414540517,3.70728718,1785.6,1785.5,40.8]
[1743414541915,1.12039,1785.4,1785.3,0.00839607]
[1743414542311,5.14739,1785.4,1785.3,0.00839607]
[1743414542507,6.52589,1785.4,1785.3,0.00839607]
[1743414542707,6.52589,1785.4,1785.3,40.80839607]
[1743414542917,1.12052,1785.2,1785.1,5.82083]
[1743414543120,2.49901,1785.3,1785.2,1.12052]
[1743414544019,2.49901,1785.3,1785.2,40.8]
[1743414544620,2.49901,1785.3,1785.2,41.92052]
[1743414544821,2.49901,1785.3,1785.2,40.8]
[1743414546017,2.49901,1785.3,1785.2,41.92052]
[1743414546321,4.027,1785.4,1785.3,1.1204]
[1743414546322,1.12043,1785.4,1785.3,1.1204]
[1743414546522,1.12043,1785.4,1785.3,4.3282]
[1743414546723,2.60173,1785.4,1785.3,4.3282]
[1743414546920,2.60173,1785.4,1785.3,45.1282]
[1743414547223,5.14733,1785.5,1785.4,1.12039]
[1743414547720,5.14733,1785.5,1785.3,4.32819]
[1743414547721,1.12039,1785.4,1785.3,4.32819]
[1743414547916,5.14738,1785.5,1785.4,1.12039]
[1743414548118,1.4625,1785.6,1785.5,1.12033]
[1743414548322,0.7418,1785.7,1785.5,1.12033]
[1743414548323,1.12024,1785.7,1785.6,1.12021]
[1743414548518,1.12854607,1785.8,1785.7,1.12021]
[1743414548724,1.12021,1785.7,1785.6,1.4251]
[1743414548921,1.12027,1785.6,1785.5,3.2078]
[1743414549124,1.12033,1785.5,1785.4,2.54543]
[1743414549323,1.12032,1785.6,1785.5,1.12029]
[1743414549522,1.12032,1785.6,1785.5,4.32809]
[1743414549728,2.58273,1785.7,1785.6,1.12027]
[1743414550228,1.12027,1785.6,1785.5,4.32808]
[1743414550625,1.12033,1785.5,1785.4,5.75329]
[1743414550825,2.51073,1785.5,1785.4,1.4251]
[1743414551128,2.51073,1785.5,1785.4,5.75329]
[1743414551322,2.51073,1785.5,1785.4,4.6329]
[1743414551833,2.51073,1785.5,1785.4,1.4251]
[1743414552126,2.51073,1785.5,1785.4,2.54549]
[1743414552322,2.51073,1785.5,1785.4,4.6329]
[1743414552529,1.12046,1785.4,1785.3,1.12045]
[1743414552723,2.51086,1785.4,1785.3,1.12045]
[1743414553523,2.80878607,1785.8,1785.3,5.30102]
[1743414553726,1.12031,1785.6,1785.5,1.12026]
[1743414553925,2.80878607,1785.8,1785.6,1.12024]
[1743414553926,1.12027,1785.7,1785.6,1.12024]
[1743414554134,1.12027,1785.7,1785.6,1.86714]
[1743414554426,1.12027,1785.7,1785.6,0.7469]
[1743414554624,1.12027,1785.7,1785.6,41.5469]
[1743414554822,1.12027,1785.7,1785.6,40.8]
[1743414555231,2.52227,1785.7,1785.6,40.8]
[1743414556328,2.52227,1785.7,1785.6,41.92027]
[1743414556529,2.52227,1785.7,1785.6,40.8]
[1743414557632,1.12027,1785.7,1785.6,40.8]
[1743414557830,2.61607,1785.7,1785.6,40.8]
[1743414559937,6.64307,1785.7,1785.6,40.8]
[1743414560536,8.0228,1785.7,1785.2,3.2078]
[1743414560736,1.12046,1785.3,1785.2,3.2078]
[1743414560935,1.12046,1785.3,1785.2,4.32832]
[1743414561236,5.14746,1785.3,1785.2,4.32832]
[1743414561531,5.14746,1785.3,1785.2,45.12832]
[1743414562143,4.027,1785.3,1785.2,45.12832]
[1743414562739,5.14746,1785.3,1785.2,45.12832]
[1743414562939,4.027,1785.3,1785.2,45.12832]
[1743414563141,2.61722,1785.4,1785.3,1.12046]
[1743414563647,1.12037,1785.5,1785.4,1.12035]
[1743414564041,1.12037,1785.5,1785.4,1.84515]
[1743414564345,1.12037,1785.5,1785.4,41.5248]
[1743414564746,6.64481,1785.6,1785.5,1.12033]
[1743414564948,1.12031,1785.6,1785.5,1.12033]
[1743414565242,1.50589607,1785.8,1785.7,1.12021]
[1743414565548,1.12853607,1785.8,1785.7,41.92021]
[1743414566053,1.12853607,1785.8,1785.7,42.63001]
[1743414570049,0.00839607,1785.8,1785.7,42.63001]
[1743414570945,25.16360447,1786.2,1786.1,1.11995]
[1743414571151,24.82629447,1786.2,1786.1,1.11995]
[1743414571552,24.82629447,1786.2,1786.1,1.83775]
[1743414571553,23.70640447,1786.2,1786.1,1.83775]
[1743414571753,24.82629447,1786.2,1786.1,42.63775]
[1743414571954,23.70640447,1786.2,1786.1,42.63775]
[1743414572255,17.45272447,1786.2,1786.1,49.16375]
[1743414572749,17.45272447,1786.2,1786.1,76.76375]
[1743414573646,0.00839607,1786.3,1786.2,1.11989]
[1743414573957,1.1196,1786.7,1786.6,1.11964]
[1743414574145,1.1196,1786.7,1786.6,4.32744]
[1743414574346,1.1196,1786.7,1786.6,45.12744]
[1743414574552,1.1196,1786.7,1786.6,44.0078]
[1743414574853,1.1196,1786.7,1786.6,46.53384]
[1743414575049,1.1196,1786.7,1786.6,45.4142]
[1743414575250,1.1196,1786.7,1786.6,44.0078]
[1743414575748,1.1196,1786.7,1786.6,46.53384]
[1743414575954,2.60693607,1786.8,1786.7,1.11958]
[1743414576150,2.60693607,1786.8,1786.7,2.52598]
[1743414576351,2.60693607,1786.8,1786.7,1.4064]
[1743414576655,2.60693607,1786.8,1786.7,42.2064]
[1743414577550,2.60693607,1786.8,1786.7,43.32598]
[1743414578456,2.60693607,1786.8,1786.7,42.2064]
[1743414579049,1.12793607,1786.8,1786.7,41.91958]
[1743414579251,2.57253607,1786.8,1786.7,42.2412]
[1743414579450,2.57253607,1786.8,1786.7,40.8]
[1743414580453,9.80433607,1786.8,1786.7,40.8]
[1743414582545,1.11964,1786.6,1786.5,0.00839607]
[1743414583463,1.11964,1786.6,1786.5,40.80839607]
[1743414583663,1.83514,1786.6,1786.5,40.80839607]
[1743414584356,1.11964,1786.6,1786.5,40.80839607]
[1743414585054,1.11964,1786.6,1786.5,42.21569607]
[1743414586764,1.11964,1786.6,1786.5,40.80839607]
[1743414587854,1.11964,1786.6,1786.5,38.00823255]
[1743414588059,1.11989,1786.2,1786.1,1.3723]
[1743414588361,1.11989,1786.2,1786.1,2.49225]
[1743414588659,1.11989,1786.2,1786.1,2.49223]
[1743414589052,1.11989,1786.2,1786.1,43.29223]
[1743414591660,1.11989,1786.2,1786.1,42.1723]
[1743414592359,1.11989,1786.2,1786.1,40.8]
[1743414593050,1.11989,1786.2,1786.1,43.31055]
[1743414593456,1.11989,1786.2,1786.1,42.1906]
[1743414596866,1.11989,1786.2,1786.1,43.31055]
[1743414597068,1.11989,1786.2,1786.1,42.1906]
[1743414597269,1.11989,1786.2,1786.1,43.31055]
[1743414597869,1.11989,1786.2,1786.1,43.31049]
[1743414598769,1.11989,1786.2,1786.1,42.1906]
[1743414601468,1.11989,1786.2,1786.1,43.31055]
[1743414601865,1.11989,1786.2,1786.1,42.1906]
[1743414602072,1.11989,1786.2,1786.1,43.31055]
[1743414602962,2.63866,1786.3,1786.1,42.1906]
[1743414603162,2.63866,1786.3,1786.2,1.5137]
[1743414603671,2.63866,1786.3,1786.2,42.3137]
[1743414604971,2.63866,1786.3,1786.2,40.8]
[1743414606167,3.2078,1786.9,1786.7,1.11958]
[1743414606370,1.4002,1786.7,1786.6,1.11964]
[1743414606763,1.4002,1786.7,1786.6,41.91964]
[1743414606970,1.11958,1786.7,1786.6,43.30824]
[1743414607169,1.11958,1786.7,1786.6,42.1886]
[1743414607578,1.40859607,1786.8,1786.6,42.1886]
[1743414607777,2.52811607,1786.8,1786.7,1.3886]
[1743414608371,2.52811607,1786.8,1786.7,42.1886]
[1743414609776,2.52811607,1786.8,1786.7,40.8]
[1743414610377,2.52811607,1786.8,1786.7,41.91958]
[1743414610574,1.40859607,1786.8,1786.7,41.91958]
[1743414610778,0.00839607,1786.8,1786.7,42.66408]
[1743414610975,0.00839607,1786.8,1786.7,44.13328]
[1743414612473,1.12791607,1786.8,1786.7,44.13328]
[1743414613179,0.00839607,1786.8,1786.7,44.13328]
[1743414618983,1.12791607,1786.8,1786.7,44.13328]
[1743414619179,0.00839607,1786.8,1786.7,44.13328]
[1743414619381,1.12791607,1786.8,1786.7,44.13328]
[1743414619775,0.00839607,1786.8,1786.7,44.13328]
[1743414620277,2.58181607,1786.8,1786.7,44.13328]
[1743414620477,1.46229607,1786.8,1786.7,44.13328]
[1743414620879,2.58181607,1786.8,1786.7,44.13328]
[1743414621980,2.58181607,1786.8,1786.7,43.38878]
[1743414623494,2.58181607,1786.8,1786.7,40.8]
[1743414623682,8.28961607,1786.8,1786.7,40.8]
[1743414624876,1.11983,1786.3,1786.2,3.2078]
[1743414625075,5.13882,1786.4,1786.2,3.2078]
[1743414625375,0.7447,1786.3,1786.2,5.72549]
[1743414625682,2.152,1786.3,1786.2,5.72549]
[1743414625882,3.27183,1786.3,1786.2,44.0078]
[1743414626473,3.27183,1786.3,1786.2,40.8]
[1743414626984,5.77183,1786.3,1786.2,40.8]
[1743414627688,1.11995,1786.1,1786.0,0.00839607]
[1743414627873,8.34675,1786.1,1786.0,0.00839607]
[1743414628281,5.84355,1786.1,1786.0,0.00839607]
[1743414628478,5.84355,1786.1,1786.0,40.80839607]
[1743414629685,1.4541,1786.2,1786.1,1.11995]
[1743414629878,1.11978,1786.4,1786.1,4.7007]
[1743414630079,3.2078,1786.5,1786.2,1.4929]
[1743414630292,1.11983,1786.3,1786.2,1.4929]
[1743414630489,1.11989,1786.2,1786.1,3.9224]
[1743414630682,3.24339,1786.2,1786.1,3.9224]
[1743414630888,3.24339,1786.2,1786.1,44.0078]
[1743414631783,3.99259,1786.2,1786.1,44.0078]
[1743414632290,1.11989,1786.2,1786.1,44.0078]
[1743414633187,1.11989,1786.2,1786.1,45.12775]
[1743414633387,1.11989,1786.2,1786.1,45.4699]
[1743414633891,1.11989,1786.2,1786.1,46.58985]
[1743414634279,1.11989,1786.2,1786.1,45.4699]
[1743414634484,1.11989,1786.2,1786.1,46.58985]
[1743414634887,1.4068,1786.3,1786.1,45.4699]
[1743414635189,1.4068,1786.3,1786.2,1.4621]
[1743414635392,4.019,1786.6,1786.4,1.11972]
[1743414635604,4.019,1786.6,1786.1,6.00757]
[1743414635605,5.13864,1786.6,1786.5,1.4621]
[1743414635788,1.4027,1786.6,1786.5,43.3818]
[1743414635988,5.86705607,1786.8,1786.7,1.11958]
[1743414636191,6.54965607,1786.8,1786.7,1.11958]
[1743414636396,2.53065607,1786.8,1786.6,2.56519]
[1743414636590,2.53066607,1786.8,1786.7,41.5285]
[1743414636898,2.53066607,1786.8,1786.7,40.8]
[1743414637091,3.25076607,1786.8,1786.7,40.8]
[1743414638693,1.11989,1786.2,1786.1,4.32772]
[1743414639193,1.11988,1786.3,1786.2,1.11989]
[1743414639395,1.11988,1786.3,1786.2,1.3845]
[1743414639593,2.63328,1786.3,1786.2,42.1845]
[1743414640790,2.63328,1786.3,1786.2,43.30439]
[1743414640990,5.13775,1786.5,1786.4,1.11977]
[1743414641185,4.018,1786.5,1786.4,1.11977]
[1743414641397,5.1377,1786.5,1786.3,6.43198]
[1743414641692,5.1377,1786.5,1786.4,42.9073]
[1743414641892,5.1377,1786.5,1786.4,40.8]
[1743414642289,7.6377,1786.5,1786.4,40.8]
[1743414642492,1.11995,1786.1,1786.0,0.00839607]
[1743414644199,1.11995,1786.1,1786.0,40.80839607]
[1743414645495,5.13795,1786.1,1786.0,40.80839607]
[1743414646493,4.6042,1786.3,1786.0,40.80839607]
[1743414646692,1.11989,1786.2,1786.1,2.1582]
[1743414646889,1.11989,1786.2,1786.1,1.4009]
[1743414647393,1.11995,1786.1,1786.0,0.00839607]
[1743414647989,5.13795,1786.1,1786.0,40.80839607]
[1743414648496,1.11995,1786.1,1786.0,40.80839607]
[1743414649099,1.11995,1786.1,1786.0,42.21019607]
[1743414649598,1.11995,1786.1,1786.0,43.33021607]
[1743414650208,1.11995,1786.1,1786.0,42.21019607]
[1743414650697,1.11995,1786.1,1786.0,44.04671607]
[1743414651300,1.11995,1786.1,1786.0,42.92669607]
[1743414652093,1.11995,1786.1,1786.0,42.21019607]
[1743414652297,1.11991,1786.2,1786.1,1.11995]
[1743414652499,1.11989,1786.2,1786.1,2.1709]
[1743414652889,1.11989,1786.2,1786.1,42.9709]
[1743414653506,0.7033,1786.3,1786.1,42.9709]
[1743414653802,1.11987,1786.3,1786.2,1.11987]
[1743414653995,1.11987,1786.3,1786.2,2.59577]
[1743414654200,1.11987,1786.3,1786.2,3.29877]
[1743414654398,1.11987,1786.3,1786.2,44.09877]
[1743414655104,5.1368,1786.4,1786.3,1.11983]
[1743414655304,5.1368,1786.4,1786.3,2.55913]
[1743414655907,5.1368,1786.4,1786.3,43.35913]
[1743414656203,4.017,1786.6,1786.5,1.1197]
[1743414656393,0.7009,1786.7,1786.6,1.11964]
[1743414656394,6.63668,1786.7,1786.6,1.11964]
[1743414656599,0.00839607,1786.8,1786.7,1.11958]
[1743414656793,0.00839607,1786.8,1786.7,45.12738]
[1743414657204,5.5171,1787.2,1786.9,1.11945]
[1743414657407,2.48673,1787.1,1787.0,4.6616]
[1743414657705,1.3674,1787.1,1787.0,4.32719]
[1743414657906,5.13629,1787.2,1787.0,4.32719]
[1743414658206,23.83323708,1787.3,1787.1,41.91929]
[1743414658401,24.96083315,1787.3,1787.2,1.11927]
[1743414658721,24.96083315,1787.3,1787.2,4.32707]
[1743414658901,0.00839607,1787.3,1787.2,4.32707]
[1743414659201,0.00839607,1787.3,1787.0,4.32714]
[1743414659202,1.11933,1787.1,1787.0,4.32714]
[1743414659907,1.11931,1787.2,1787.1,1.11932]
[1743414661207,1.37579607,1787.3,1787.0,3.9427]
[1743414661502,1.11933,1787.1,1787.0,5.06207]
[1743414661717,1.11933,1787.1,1787.0,3.9427]
[1743414662007,2.59793,1787.1,1787.0,3.2078]
[1743414663016,1.11939,1787.0,1786.9,0.00839607]
[1743414663211,2.59799,1787.0,1786.9,1.12784607]
[1743414663414,1.4786,1787.0,1786.9,1.12784607]
[1743414664008,1.4786,1787.0,1786.9,41.92784607]
[1743414664511,2.59799,1787.0,1786.9,41.92784607]
[1743414665311,1.4786,1787.0,1786.9,41.92784607]
[1743414665809,2.59799,1787.0,1786.9,41.92784607]
[1743414666008,2.59799,1787.0,1786.9,40.80839607]